bitfinex/quotes_ETHUSD_20241001
["timestamp","ask_amount","ask_price","bid_price","bid_amount"]
[1727793423981,8.96796527,2566.6,2565.7,5.52002]
[1727793424185,3.89655,2566.4,2565.7,5.52013]
[1727793424417,3.89668,2566.3,2565.7,1.6226]
[1727793424711,1.6478,2567.0,2565.7,1.6226]
[1727793424712,5.07169527,2567.4,2566.4,3.89638]
[1727793425041,3.8946,2567.7,2565.9,1.5949]
[1727793425042,5.07169527,2566.6,2565.9,1.5949]
[1727793425190,3.8966,2566.4,2565.9,1.5949]
[1727793425380,3.89585,2566.9,2566.2,3.89671]
[1727793425582,6.62249527,2567.4,2565.9,5.49215]
[1727793425583,3.89607,2566.7,2565.9,5.49215]
[1727793425785,3.89631,2566.6,2565.9,1.5949]
[1727793425971,3.89565,2567.0,2565.9,1.5949]
[1727793426177,3.89555,2567.1,2566.3,3.89653]
[1727793426487,3.89499,2567.4,2566.7,3.89595]
[1727793426695,3.89499,2567.4,2566.4,1.568]
[1727793426696,3.89488,2567.5,2566.5,3.89629]
[1727793426880,3.89409,2568.0,2566.4,1.568]
[1727793426881,3.89562,2567.0,2566.4,1.568]
[1727793427100,8.96678527,2567.4,2566.4,1.568]
[1727793427268,3.89472,2567.6,2566.4,1.568]
[1727793427269,3.89472,2567.6,2566.8,3.89585]
[1727793427465,8.96608527,2567.8,2566.8,3.89585]
[1727793427466,8.96608527,2567.8,2567.0,3.89549]
[1727793427467,3.89439,2567.8,2567.0,3.89549]
[1727793427678,3.89439,2567.8,2566.9,1.5362]
[1727793427679,0.0397378,2567.6,2566.9,1.5362]
[1727793427897,0.0397378,2567.6,2567.0,0.07790379]
[1727793428146,0.0397378,2567.6,2567.5,5.51173]
[1727793428340,0.0397378,2567.6,2567.5,5.589602]
[1727793428526,3.89262,2569.0,2568.2,1.6169]
[1727793428818,3.89262,2569.0,2567.5,9.19866346]
[1727793428819,3.89344,2568.5,2567.5,3.89477]
[1727793429174,5.07169527,2569.0,2567.5,3.89477]
[1727793429175,3.89365,2568.3,2567.5,3.89477]
[1727793429374,5.07169527,2569.0,2567.3,3.89506]
[1727793429375,3.89399,2568.1,2567.3,3.89506]
[1727793429694,3.89408,2568.0,2567.3,3.895]
[1727793430101,3.89408,2568.0,2567.1,3.89539]
[1727793430102,3.89486,2567.5,2566.4,0.3901]
[1727793430308,1.5087,2568.8,2566.4,0.3901]
[1727793430309,5.07169527,2567.8,2566.4,0.3901]
[1727793430507,3.8959,2566.8,2565.9,3.89721]
[1727793430824,3.8959,2566.8,2565.2,2.0]
[1727793430825,3.89595,2566.8,2566.0,3.89701]
[1727793431004,3.89551,2567.1,2565.5,5.07169527]
[1727793431226,3.89269,2569.0,2566.4,3.89643]
[1727793431227,0.55,2567.5,2566.4,3.89643]
[1727793431525,3.89524,2567.3,2566.4,3.89643]
[1727793431728,4.44487,2567.5,2566.2,3.89671]
[1727793431729,3.89573,2567.0,2566.2,3.89671]
[1727793431876,3.89573,2567.0,2566.1,3.89689]
[1727793431877,3.89571,2567.0,2566.3,3.89658]
[1727793432081,3.89533,2567.2,2566.0,1.5337]
[1727793432307,3.89516,2567.3,2566.6,3.89615]
[1727793432616,3.895,2567.4,2566.6,3.89609]
[1727793432824,3.895,2567.4,2566.0,3.0]
[1727793432825,3.89471,2567.6,2566.8,3.89581]
[1727793432972,6.61829527,2568.2,2566.9,1.68520202]
[1727793432973,3.89455,2567.7,2566.9,1.68520202]
[1727793433173,3.89436,2567.9,2566.9,1.6073]
[1727793433421,3.89495,2567.5,2566.9,1.68504116]
[1727793433600,3.89529,2567.2,2566.9,1.6073]
[1727793433917,3.89559,2567.0,2566.3,5.41632]
[1727793434138,3.8963,2566.6,2566.3,1.5197]
[1727793434293,3.89559,2567.0,2566.3,1.5197]
[1727793434613,4.44518,2567.3,2566.3,1.5197]
[1727793434614,3.89545,2567.1,2566.4,0.07772096]
[1727793434821,3.89562,2567.0,2566.3,5.41624]
[1727793435175,0.55,2567.3,2566.3,1.5197]
[1727793435176,4.44526,2567.3,2566.3,1.5197]
[1727793435417,3.8959,2566.8,2566.3,1.5197]
[1727793435618,3.89537,2567.2,2566.3,1.5197]
[1727793435789,3.8965,2566.4,2565.9,1.6385]
[1727793435990,3.89628,2566.6,2565.9,1.6385]
[1727793435991,3.89626,2566.6,2565.9,1.6385]
[1727793436311,0.55,2567.3,2565.9,1.6385]
[1727793436312,3.89608,2566.7,2566.1,3.89692]
[1727793436480,3.89506,2567.4,2566.7,3.89594]
[1727793436679,8.96535527,2568.3,2566.2,1.6385]
[1727793436881,5.50523,2567.7,2566.2,1.6385]
[1727793437202,3.8959,2566.8,2566.2,5.5352]
[1727793437395,3.89508,2567.4,2566.2,1.6385]
[1727793437739,3.89545,2567.1,2566.2,1.6385]
[1727793437956,3.89522,2567.3,2566.7,3.89595]
[1727793438114,3.8953,2567.2,2566.5,3.89625]
[1727793438472,3.89522,2567.3,2566.6,3.8962]
[1727793438748,1.6106,2567.7,2566.2,1.6385]
[1727793438949,3.89609,2566.7,2566.2,1.6385]
[1727793439148,3.89597,2566.8,2566.2,1.6385]
[1727793439340,3.89597,2566.8,2565.1,7.07169527]
[1727793439341,3.8969,2566.2,2565.8,1.5347]
[1727793439519,3.89683,2566.2,2565.8,1.5347]
[1727793439709,3.89666,2566.3,2565.8,1.5347]
[1727793439941,3.89695,2566.2,2565.8,1.5347]
[1727793440151,3.89549,2567.1,2565.8,1.5347]
[1727793440152,3.89707,2566.1,2565.8,1.5347]
[1727793440455,1.5227,2566.9,2565.8,1.5347]
[1727793440456,3.89675,2566.3,2565.8,1.5347]
[1727793440758,4.5956,2567.3,2565.8,5.43205]
[1727793441063,4.5956,2567.3,2565.8,1.5347]
[1727793441064,3.89659,2566.4,2565.8,1.5347]
[1727793441214,3.89687,2566.2,2565.8,1.5347]
[1727793441580,3.89711,2566.0,2565.8,1.5347]
[1727793441726,3.89726,2565.9,2565.8,1.5347]
[1727793441919,3.89711,2566.0,2565.8,1.5347]
[1727793442105,3.8969,2566.2,2565.8,1.5347]
[1727793442106,3.89629,2566.6,2565.8,1.5347]
[1727793442309,3.896,2566.8,2565.9,0.07793664]
[1727793442551,8.96603527,2567.9,2565.9,0.07793664]
[1727793442552,3.89507,2567.4,2566.8,3.89579]
[1727793442839,3.89397,2568.1,2566.9,0.07790889]
[1727793442840,3.89458,2567.7,2566.9,0.07790889]
[1727793443040,3.89458,2567.7,2567.1,3.89543]
[1727793443260,0.79932972,2568.2,2566.8,1.5051]
[1727793443261,3.89485,2567.5,2566.8,5.40089]
[1727793443549,10.62608527,2568.3,2566.8,1.5051]
[1727793443751,3.8944,2567.8,2567.2,3.89527]
[1727793443920,3.89485,2567.5,2567.0,3.89552]
[1727793444261,1.19926522,2568.5,2566.8,5.40091]
[1727793444262,3.89452,2567.8,2567.6,1.6445]
[1727793444838,7.78905,2567.8,2567.2,3.89521]
[1727793445036,7.78905,2567.8,2567.0,3.89549]
[1727793445037,1.99859494,2568.1,2567.0,3.89549]
[1727793445221,7.7896,2567.6,2567.0,3.89549]
[1727793445445,1.8947386,2568.0,2567.4,5.44706]
[1727793445446,0.79932972,2567.9,2567.4,5.44706]
[1727793445760,8.58828972,2567.8,2567.4,1.5522]
[1727793445932,1.89536036,2567.7,2567.0,3.89554]
[1727793446130,3.89512,2567.4,2566.6,3.89608]
[1727793446354,3.89512,2567.4,2566.2,3.8967]
[1727793446657,3.89512,2567.4,2565.4,9.09595007]
[1727793446658,1.5763,2567.6,2566.3,9.43612802]
[1727793446659,3.89477,2567.6,2566.3,9.43612802]
[1727793446840,3.89445,2567.8,2566.4,0.07775006]
[1727793447044,3.89432,2567.9,2567.3,3.895]
[1727793447257,3.89422,2568.0,2567.4,3.89497]
[1727793447535,3.89422,2568.0,2567.4,3.89486]
[1727793447870,0.79932972,2568.2,2567.3,3.8951]
[1727793448172,3.89457,2567.7,2567.0,3.89557]
[1727793448349,3.89399,2568.1,2566.6,3.0]
[1727793448664,0.79932972,2567.8,2566.7,3.89602]
[1727793448828,3.89425,2567.9,2567.0,1.5534]
[1727793449024,3.89423,2567.9,2567.4,3.89491]
[1727793449369,3.89513,2567.4,2567.0,1.5534]
[1727793449568,0.79932972,2567.5,2567.0,1.5534]
[1727793449735,1.19926522,2567.6,2566.6,3.89606]
[1727793449736,3.89546,2567.1,2566.6,5.51163]
[1727793450067,0.79932972,2567.4,2566.6,1.6155]
[1727793450272,1.60654458,2567.7,2567.4,1.5104]
[1727793450273,0.79932972,2567.7,2567.4,1.5104]
[1727793450482,0.79932972,2567.9,2567.4,1.5104]
[1727793450632,1.60654458,2568.1,2567.4,1.5104]
[1727793450633,0.79932972,2568.1,2567.6,3.89468]
[1727793450834,1.19926522,2568.2,2567.4,5.40532]
[1727793450835,4.69317972,2568.2,2567.4,5.40532]
[1727793451131,3.89447,2567.8,2567.4,1.5104]
[1727793451460,3.89447,2567.8,2566.9,1.61]
[1727793451461,0.79932972,2567.8,2566.9,1.61]
[1727793451766,3.89507,2567.4,2566.9,1.61]
[1727793451973,3.89559,2567.0,2566.9,1.61]
[1727793452134,0.79932972,2567.5,2566.3,3.89662]
[1727793452135,3.89583,2566.9,2566.3,3.89662]
[1727793452347,1.99859494,2567.3,2566.1,1.5125]
[1727793452348,0.79932972,2567.1,2566.4,1.5125]
[1727793452540,3.89536,2567.2,2566.4,1.5125]
[1727793452541,0.79932972,2567.2,2566.7,3.896]
[1727793452752,1.19926522,2567.3,2566.3,5.07169527]
[1727793452753,0.79932972,2567.3,2566.8,3.8958]
[1727793452962,0.79932972,2567.5,2567.0,3.89554]
[1727793453180,1.60654458,2567.8,2567.0,3.89555]
[1727793453181,0.79932972,2567.8,2567.0,3.89555]
[1727793453387,5.89275494,2568.0,2567.4,3.89491]
[1727793453672,5.89275494,2568.0,2567.2,3.89517]
[1727793453673,3.89445,2567.8,2567.2,3.89517]
[1727793453878,3.89445,2567.8,2567.3,3.8951]
[1727793454098,4.69377972,2567.8,2567.4,3.89498]
[1727793454381,4.69377972,2567.8,2567.2,3.89517]
[1727793454382,3.89446,2567.8,2567.3,3.89505]
[1727793454537,0.79932972,2567.9,2567.3,3.89505]
[1727793454538,4.69364972,2567.9,2567.4,3.89496]
[1727793454885,0.79932972,2568.0,2567.6,3.8946]
[1727793455040,0.79932972,2568.1,2567.7,3.89444]
[1727793455240,3.89394,2568.1,2567.6,7.78919]
[1727793455555,0.79932972,2568.2,2567.1,4.6393]
[1727793455556,0.79932972,2568.2,2567.7,3.89441]
[1727793455753,0.79932972,2568.3,2567.9,1.6296]
[1727793456072,3.89393,2568.1,2567.5,3.89473]
[1727793456278,3.89439,2567.8,2567.2,1.6113]
[1727793456476,3.89448,2567.8,2567.2,1.6113]
[1727793456685,3.89448,2567.8,2567.3,3.895]
[1727793456838,0.79932972,2567.9,2567.3,3.895]
[1727793457037,0.79932972,2567.9,2567.2,1.6113]
[1727793457038,0.79932972,2567.8,2567.2,1.6113]
[1727793457285,0.79932972,2567.9,2567.3,3.89506]
[1727793457438,4.69348972,2568.0,2567.3,3.97295558]
[1727793457641,4.69333972,2568.1,2567.6,3.89467]
[1727793457887,4.69333972,2568.1,2567.2,1.6113]
[1727793457888,3.89461,2567.7,2567.2,1.6113]
[1727793458070,3.89478,2567.6,2567.2,1.6113]
[1727793458242,3.89478,2567.6,2567.2,1.6891974]
[1727793458814,3.89478,2567.6,2566.6,4.39834759]
[1727793458815,3.89574,2566.9,2566.8,1.5773]
[1727793458955,3.89554,2567.1,2566.3,1.5773]
[1727793459142,0.79932972,2567.2,2566.3,1.5773]
[1727793459384,4.69453972,2567.3,2566.6,3.8962]
[1727793459565,3.89554,2567.1,2566.5,3.89632]
[1727793459781,2.39712972,2567.2,2566.3,1.5773]
[1727793459975,3.89658,2566.4,2565.9,1.6196]
[1727793460379,3.89711,2566.0,2565.4,3.89794]
[1727793460588,3.89711,2566.0,2564.9,5.89874]
[1727793460589,0.79932972,2566.5,2565.6,3.89772]
[1727793460809,3.89713,2566.0,2565.5,1.5258]
[1727793461009,4.69622972,2566.2,2565.5,1.5258]
[1727793461189,0.55,2566.2,2565.1,1.6449]
[1727793461505,3.89828,2565.3,2564.7,3.89898]
[1727793461800,3.89777,2565.6,2564.9,3.89867]
[1727793462001,3.89777,2565.6,2564.8,1.6418]
[1727793462002,3.89832,2565.3,2564.8,1.6418]
[1727793462208,0.79932972,2565.6,2564.8,1.6418]
[1727793462209,3.89833,2565.2,2564.8,1.6418]
[1727793462504,3.89833,2565.2,2564.5,3.89938]
[1727793462505,7.79686,2565.2,2564.5,3.89936]
[1727793462663,3.89837,2565.2,2564.4,1.6583]
[1727793462863,0.79932972,2565.5,2564.4,1.6583]
[1727793462864,3.89896,2564.8,2564.4,1.6583]
[1727793463609,3.89927,2564.6,2564.0,5.53673]
[1727793463901,3.89925,2564.6,2564.0,1.6367]
[1727793464154,3.89924,2564.6,2564.0,1.6367]
[1727793464468,3.89957,2564.4,2564.0,1.6367]
[1727793464668,3.89924,2564.6,2564.0,5.53685]
[1727793464916,3.89924,2564.6,2564.0,1.6367]
[1727793465218,3.89899,2564.8,2564.0,1.6367]
[1727793465503,3.89934,2564.6,2564.0,1.6367]
[1727793465911,7.79806,2564.8,2564.0,5.53675]
[1727793466078,3.89935,2564.6,2564.0,1.6367]
[1727793466281,3.89901,2564.8,2564.1,3.89991]
[1727793466483,3.89933,2564.6,2564.0,5.53676]
[1727793466671,7.79805,2564.8,2564.1,3.89999]
[1727793466876,3.89869,2565.0,2564.4,3.89944]
[1727793467199,3.8985,2565.1,2564.5,0.07797802]
[1727793467815,3.89836,2565.2,2564.6,3.89913]
[1727793468029,3.89836,2565.2,2564.1,4.843625]
[1727793468030,3.89863,2565.0,2564.4,3.89943]
[1727793468212,3.89863,2565.0,2564.5,0.0779762]
[1727793468584,3.89839,2565.2,2564.5,0.0779762]
[1727793468885,7.79562,2565.6,2564.8,3.89891]
[1727793469200,2.33092972,2565.7,2564.7,1.5201]
[1727793469201,6.60329527,2565.7,2564.7,1.5201]
[1727793469519,7.79689,2565.2,2564.7,1.5201]
[1727793469719,1.88523304,2565.6,2564.7,1.5201]
[1727793469720,3.89779,2565.6,2564.7,1.5201]
[1727793469921,3.89779,2565.6,2564.9,3.89869]
[1727793470119,0.79932972,2566.0,2564.7,1.5201]
[1727793470120,5.07169527,2565.7,2564.7,1.5201]
[1727793470331,5.07169527,2565.7,2564.7,5.41914]
[1727793470332,3.89812,2565.4,2564.7,5.41914]
[1727793470483,3.89792,2565.5,2564.9,7.79744]
[1727793470683,3.89751,2565.8,2565.1,3.89838]
[1727793470957,6.75967522,2566.1,2564.7,5.961014]
[1727793470958,3.89792,2565.5,2564.7,5.961014]
[1727793471087,0.79932972,2566.1,2564.8,3.0]
[1727793471435,0.79932972,2566.1,2565.0,4.5111]
[1727793471436,4.69628972,2566.1,2565.0,4.5111]
[1727793471719,3.89696,2566.1,2565.3,3.89808]
[1727793471935,3.89729,2565.9,2565.3,7.79617]
[1727793472088,3.89696,2566.1,2565.5,3.89785]
[1727793472283,6.27096049,2566.6,2565.8,3.8974]
[1727793472284,4.69560972,2566.6,2565.8,3.8974]
[1727793472526,1.19926522,2566.7,2565.9,1.5139]
[1727793472527,3.89691,2566.2,2565.9,1.5139]
[1727793472718,3.89691,2566.2,2565.6,5.41152]
[1727793473239,3.8963,2566.6,2565.6,2.444846]
[1727793473524,3.8963,2566.6,2565.9,3.89726]
[1727793473525,3.89654,2566.4,2565.9,3.89726]
[1727793474086,3.89668,2566.3,2565.7,7.79495]
[1727793474410,3.89681,2566.2,2565.6,1.5139]
[1727793474723,3.89681,2566.2,2565.2,4.28836]
[1727793474724,3.89749,2565.8,2565.2,3.89824]
[1727793474934,3.89749,2565.8,2565.3,3.89816]
[1727793475100,3.89719,2566.0,2565.4,3.898]
[1727793475287,3.89735,2565.9,2565.4,3.898]
[1727793475497,3.89719,2566.0,2565.2,3.89821]
[1727793475898,1.548,2565.7,2565.3,3.89807]
[1727793476101,3.89979,2564.3,2563.7,3.90052]
[1727793476449,3.89892,2564.9,2563.2,3.90135]
[1727793476450,3.89925,2564.6,2563.9,2.183272]
[1727793476643,2.34732972,2565.2,2564.1,3.89987]
[1727793476644,3.89904,2564.8,2564.1,3.89987]
[1727793476939,3.89895,2564.8,2564.2,3.89971]
[1727793477168,3.89895,2564.8,2563.9,1.6302]
[1727793477169,3.89887,2564.9,2563.9,1.6302]
[1727793477294,3.89887,2564.9,2564.1,3.89999]
[1727793477494,3.89883,2564.9,2564.1,3.89999]
[1727793477809,3.89946,2564.5,2563.9,5.53041]
[1727793478123,3.89946,2564.5,2564.0,3.90013]
[1727793478437,3.89946,2564.5,2563.9,6.083451]
[1727793478438,3.89946,2564.5,2563.9,6.083521]
[1727793478592,3.89946,2564.5,2563.9,9.983731]
[1727793478791,3.89885,2564.9,2563.9,2.183241]
[1727793478992,3.89925,2564.6,2564.0,6.90008]
[1727793479265,3.89922,2564.7,2564.1,3.89992]
[1727793479416,3.89919,2564.7,2564.1,3.89992]
[1727793479609,1.548,2565.2,2563.9,5.53048]
[1727793479610,5.07169527,2564.9,2563.9,5.53048]
[1727793479912,3.89904,2564.8,2564.1,3.9]
[1727793480211,3.89927,2564.6,2563.9,5.53035]
[1727793480434,3.89962,2564.4,2563.9,1.6302]
[1727793480858,3.89986,2564.2,2563.6,1.5918]
[1727793481156,5.07169527,2564.9,2563.6,1.5918]
[1727793481157,5.07169527,2564.4,2563.6,1.5918]
[1727793481329,0.55,2565.1,2562.8,3.90196]
[1727793481330,3.90106,2563.5,2562.8,3.90196]
[1727793481513,3.9003,2563.9,2562.7,1.5941]
[1727793481514,3.90161,2563.1,2562.7,1.5941]
[1727793481713,10.56728527,2563.6,2562.7,1.5941]
[1727793481714,3.90115,2563.4,2562.7,1.5941]
[1727793481910,3.9008,2563.6,2563.0,3.90155]
[1727793482116,3.90084,2563.6,2562.8,3.90183]
[1727793482361,3.90084,2563.6,2563.0,3.90157]
[1727793482564,1.5103,2563.9,2563.0,4.291737]
[1727793482884,3.90005,2564.1,2563.0,0.390157]
[1727793483080,5.43335,2564.2,2563.3,3.90121]
[1727793483284,1.5334,2564.2,2563.5,3.90088]
[1727793483634,3.89994,2564.2,2563.7,7.80104]
[1727793483835,3.89994,2564.2,2563.5,3.90083]
[1727793483836,3.9,2564.1,2563.5,3.90083]
[1727793484033,3.89994,2564.2,2563.5,3.90083]
[1727793484342,3.89994,2564.2,2563.5,3.90082]
[1727793484542,3.89957,2564.4,2563.8,3.90036]
[1727793484748,3.90002,2564.1,2563.5,8.737353]
[1727793484946,3.89974,2564.3,2563.7,3.9006]
[1727793485328,5.47789,2564.7,2563.5,0.935723]
[1727793485558,3.89948,2564.5,2563.7,3.9005]
[1727793485871,3.89888,2564.9,2564.3,3.89968]
[1727793486080,5.45578,2565.1,2564.1,3.89986]
[1727793486081,3.89909,2564.7,2564.1,3.89986]
[1727793486453,1.5572,2565.1,2563.6,3.90072]
[1727793486454,5.45578,2565.1,2563.7,5.50239]
[1727793486636,3.89835,2565.2,2564.7,3.89895]
[1727793486837,5.41122,2565.5,2564.9,3.89867]
[1727793487131,0.79932972,2565.6,2564.5,5.53425]
[1727793487381,0.79932972,2565.6,2565.0,3.89848]
[1727793487534,0.79932972,2565.6,2565.3,1.6349]
[1727793487535,2.28226604,2565.6,2565.3,1.6349]
[1727793487869,3.89848,2565.2,2564.6,0.3901]
[1727793488187,3.89848,2565.2,2564.4,3.89944]
[1727793488188,3.89849,2565.1,2564.4,3.89944]
[1727793488383,5.87102499,2565.4,2564.2,3.89985]
[1727793488384,3.89882,2564.9,2564.2,3.89985]
[1727793488676,5.87102499,2565.4,2564.3,3.89966]
[1727793488677,3.89851,2565.1,2564.3,3.89966]
[1727793488969,0.79932972,2565.3,2564.0,3.90006]
[1727793488970,3.89918,2564.7,2564.0,3.90006]
[1727793489270,3.89918,2564.7,2563.8,1.6349]
[1727793489271,0.79932972,2565.1,2564.6,3.8992]
[1727793489476,4.69767972,2565.2,2564.6,5.4151]
[1727793489691,4.69767972,2565.2,2564.2,5.41564]
[1727793489692,3.89878,2564.9,2564.2,5.41564]
[1727793489834,0.79932972,2565.3,2564.6,3.89923]
[1727793490040,3.8983,2565.3,2564.6,3.89923]
[1727793490376,3.89849,2565.1,2564.5,3.89925]
[1727793490545,3.89824,2565.3,2564.5,3.89933]
[1727793490878,3.89858,2565.1,2564.5,3.89933]
[1727793491086,3.89879,2564.9,2564.3,3.89964]
[1727793491371,3.89933,2564.6,2564.2,1.5159]
[1727793491576,2.31262972,2565.5,2564.2,1.5159]
[1727793491577,3.89894,2564.8,2564.2,1.5159]
[1727793491795,3.89884,2564.9,2564.3,3.8996]
[1727793491939,3.89872,2565.0,2564.2,1.5159]
[1727793492134,3.89855,2565.1,2564.5,3.89937]
[1727793492334,1.5133,2565.5,2563.7,0.3901]
[1727793492335,5.62169527,2565.0,2563.7,5.47958]
[1727793492581,5.41119,2565.5,2563.5,3.90082]
[1727793492582,3.90018,2564.0,2563.5,3.90082]
[1727793492766,3.90057,2563.8,2563.3,1.5791]
[1727793493333,5.4727,2564.2,2563.4,3.90101]
[1727793493534,5.47272,2564.2,2563.4,7.80198]
[1727793493771,5.47272,2564.2,2563.3,2.517277]
[1727793493772,5.47272,2564.2,2563.5,3.90076]
[1727793493982,5.47272,2564.2,2563.3,2.517277]
[1727793493983,3.90059,2563.8,2563.3,1.5791]
[1727793494251,3.90025,2564.0,2563.4,3.90104]
[1727793494398,1.5569,2564.6,2563.9,3.90027]
[1727793494399,3.8996,2564.4,2563.9,3.90027]
[1727793494583,7.79928,2564.4,2563.8,3.90034]
[1727793494784,5.45621,2564.6,2563.8,3.90034]
[1727793494989,5.07169527,2565.0,2563.8,3.90034]
[1727793494990,3.89967,2564.4,2563.8,3.90038]
[1727793495190,3.89932,2564.6,2563.9,3.90026]
[1727793495502,3.89965,2564.4,2563.8,3.90037]
[1727793495662,3.89988,2564.2,2563.6,3.90069]
[1727793495860,3.89965,2564.4,2563.7,3.90046]
[1727793495861,3.8996,2564.4,2563.7,3.90046]
[1727793496083,3.89978,2564.3,2563.8,3.90045]
[1727793496286,3.89978,2564.3,2563.6,7.80129]
[1727793496471,3.89978,2564.3,2563.6,3.90062]
[1727793496774,3.89987,2564.2,2563.7,3.90059]
[1727793496974,3.89931,2564.6,2563.9,3.90018]
[1727793497175,3.89931,2564.6,2563.9,7.8004]
[1727793497501,4.4489,2564.9,2563.9,3.90018]
[1727793497708,3.89911,2564.7,2564.0,1.6479]
[1727793497922,0.55,2564.9,2564.0,1.6479]
[1727793497923,3.89937,2564.6,2564.0,1.6479]
[1727793498106,3.89937,2564.6,2563.8,3.90035]
[1727793498400,6.67189527,2565.0,2563.6,1.6479]
[1727793498401,3.89871,2565.0,2564.3,3.89961]
[1727793498606,5.07169527,2565.4,2563.6,1.6479]
[1727793498607,3.89818,2565.3,2564.6,3.89922]
[1727793498811,5.56396,2565.4,2564.6,3.89912]
[1727793499109,5.56392,2565.4,2564.6,7.79827]
[1727793499265,5.56392,2565.4,2564.7,3.89906]
[1727793499464,6.71009527,2565.8,2564.9,3.89865]
[1727793499692,1.6384,2565.8,2564.7,0.779818]
[1727793499996,1.6384,2565.8,2564.4,1.6479]
[1727793499997,3.89758,2565.7,2565.0,3.89854]
[1727793500301,3.89758,2565.7,2565.0,7.79708]
[1727793500494,3.89758,2565.7,2565.0,3.89854]
[1727793500697,5.53582,2565.8,2565.1,3.89839]
[1727793500993,5.53582,2565.8,2565.0,3.89854]
[1727793500994,3.89771,2565.7,2565.0,3.89854]
[1727793501311,3.89771,2565.7,2564.8,3.89884]
[1727793501493,3.89828,2565.3,2564.6,3.8992]
[1727793501680,3.89828,2565.3,2563.7,4.29061]
[1727793501681,3.89905,2564.8,2564.0,3.90007]
[1727793501904,3.89905,2564.8,2563.6,1.5106]
[1727793501905,6.62659527,2565.0,2563.6,1.5106]
[1727793502074,0.55,2565.3,2564.3,1.5494]
[1727793502435,1.5742,2565.4,2564.3,1.5494]
[1727793502702,7.79559,2565.6,2564.8,3.89886]
[1727793502912,3.89774,2565.6,2564.8,3.89886]
[1727793503063,9.36927,2565.8,2565.0,3.89848]
[1727793503267,5.47172,2565.8,2565.0,3.89848]
[1727793503613,3.89758,2565.7,2565.0,3.89848]
[1727793503792,5.47172,2565.8,2565.0,3.89848]
[1727793504113,0.79932972,2566.0,2565.5,3.89778]
[1727793504336,0.79932972,2566.1,2565.7,3.89755]
[1727793504621,3.6040854,2566.5,2565.6,0.0779335]
[1727793504622,0.79932972,2566.4,2566.1,3.89695]
[1727793504914,0.79932972,2566.4,2566.3,3.89666]
[1727793505215,0.79932972,2566.7,2566.3,1.5192]
[1727793505501,1.99754082,2566.5,2566.3,5.41585]
[1727793505712,3.23644652,2566.6,2566.3,5.41584]
[1727793505881,3.63425927,2566.4,2566.3,5.41584]
[1727793506076,5.07230561,2566.4,2566.3,8.41584]
[1727793506278,4.44104498,2566.6,2566.5,3.89635]
[1727793506597,1.41844714,2566.6,2566.5,3.89635]
[1727793506802,2.42238817,2566.7,2566.6,3.8962]
[1727793506972,2.42238817,2566.9,2566.7,3.89605]
[1727793507166,2.82611953,2567.2,2566.8,25.380444]
[1727793507167,2.42238817,2567.0,2566.8,25.380444]
[1727793507433,2.42238817,2567.0,2566.9,3.89574]
[1727793507568,2.42238817,2567.0,2566.9,8.33534]
[1727793507569,1.71680807,2567.0,2566.9,8.33534]
[1727793507918,2.82611953,2567.1,2566.9,8.33534]
[1727793507919,4.5429276,2567.1,2567.0,3.89559]
[1727793508102,5.91562444,2567.1,2567.0,26.01922476]
[1727793508405,5.51238641,2567.1,2567.0,27.442324]
[1727793508624,3.33835369,2567.6,2567.0,27.442324]
[1727793508625,2.30450176,2567.4,2567.3,5.39614]
[1727793508773,3.33835369,2567.6,2567.5,6.89483]
[1727793508973,1.71571447,2567.6,2567.5,36.29766869]
[1727793509179,3.33835369,2567.9,2567.6,3.89468]
[1727793509408,3.33835369,2567.9,2567.8,3.89438]
[1727793509618,4.96995752,2567.9,2567.8,3.89438]
[1727793509920,1.63160383,2567.9,2567.8,3.89438]
[1727793510072,3.33835369,2568.0,2567.9,3.89423]
[1727793510415,5.56182611,2568.2,2568.1,3.89392]
[1727793510416,3.33835369,2568.2,2568.1,3.89392]
[1727793510586,3.33835369,2568.3,2568.2,3.89377]
[1727793510769,1.62334954,2568.3,2568.0,3.89405]
[1727793511006,3.33835369,2568.5,2568.3,8.39672]
[1727793511179,3.33835369,2568.7,2568.5,6.89332]
[1727793511392,3.33835369,2568.8,2568.7,5.39611]
[1727793511597,3.89139,2569.8,2568.7,5.39611]
[1727793511598,3.93761122,2569.1,2568.7,48.156608]
[1727793511808,3.93761122,2569.2,2569.1,3.89241]
[1727793512114,3.93761122,2569.2,2569.1,11.349865]
[1727793512265,3.93761122,2569.2,2569.1,14.8037075]
[1727793512473,3.93761122,2569.3,2569.2,3.89226]
[1727793513182,4.53939498,2570.0,2569.2,3.89226]
[1727793513183,4.53939498,2570.0,2569.5,3.89179]
[1727793513384,4.53939498,2570.0,2569.2,3.89218]
[1727793513580,0.1240303,2570.1,2569.3,6.89211]
[1727793513581,3.99601552,2569.5,2569.3,6.89211]
[1727793513797,3.99601552,2569.5,2569.4,22.218112]
[1727793514017,3.99601552,2569.5,2569.4,8.40915]
[1727793514224,0.1240303,2570.1,2569.6,3.89158]
[1727793514417,0.1240303,2570.1,2570.0,3.89105]
[1727793515980,0.1240303,2570.1,2569.8,3.8912]
[1727793516220,0.1240303,2570.1,2570.0,3.89105]
[1727793517828,0.1240303,2570.1,2569.6,3.89157]
[1727793517983,0.1240303,2570.1,2569.3,3.892]
[1727793518183,4.53939498,2569.9,2568.6,2.20625157]
[1727793518387,0.1240303,2570.1,2568.8,3.89272]
[1727793518388,3.98265784,2569.0,2568.8,3.89272]
[1727793518731,3.89228,2569.2,2568.5,3.89319]
[1727793518882,0.55,2569.7,2568.3,3.89353]
[1727793518883,3.98336262,2568.6,2568.3,3.89362]
[1727793519085,3.98336262,2568.6,2567.5,7.41]